Cogmind - Beta 14 @@@ ROGUE MODE // 2024.12.24 @ 15:22:09 Player: Golinth Result: Destroyed by as-83003 with Assembled Maul Performance ------------- Evolutions (0) 0 Regions Visited (2) 400 Robots Destroyed (19) 95 Value Destroyed (382) 382 Prototype IDs (0) 0 Alien Tech Used (0) 0 Bonus (0) 0 TOTAL SCORE: 877 Bonus ------- None Cogmind --------- Core Integrity 0/250 Matter 207/300 Energy 160/160 System Corruption 5% Temperature Cool (36) Movement Walking (190) Ox1 Location -10/Mines Parts ------- > --- POWER (1) -------- Light Nuclear Core > --- PROPULSION (2) --- Aluminum Leg > --- UTILITY (2) ------ Medium Storage Unit Seismic Detector > --- WEAPON (2) ------- Small Laser > --- INVENTORY (10) --- Ion Engine Ion Engine Aluminum Leg Aluminum Leg Small Storage Unit Visual Processing Unit Signal Interpreter Signal Interpreter Small Laser Grenade Launcher Peak State ------------ > --- POWER ------------ Light Nuclear Core > --- PROPULSION ------- Aluminum Leg Aluminum Leg > --- UTILITY ---------- Medium Storage Unit Seismic Detector > --- WEAPON ----------- Light Assault Rifle Light Assault Rifle > --- INVENTORY -------- Ion Engine Ion Engine Aluminum Leg Aluminum Leg Aluminum Leg Small Storage Unit Visual Processing Unit Small Laser Light Assault Rifle [Rating: 10] Favorites ----------- Power Light Nuclear Core Engine Ion Engine Power Core Light Nuclear Core Propulsion Aluminum Leg Leg Aluminum Leg Utility Medium Storage Unit Device Seismic Detector Storage Medium Storage Unit Weapon Light Assault Rifle Energy Gun Medium Laser Ballistic Gun Light Assault Rifle Launcher Grenade Launcher Build | -11 -10 -10 ------- Run | Yrd Mat Min Slots Evolved . | . . . Power . | . . . Propulsion . | . . . Utility . | . . . Weapon . | . . . Parts Attached 22 | 6 16 . Power 3 | 1 2 . Engine 2 | 1 1 . Core 1 | . 1 . Reactor . | . . . Propulsion 7 | 2 5 . Treads . | . . . Leg 7 | 2 5 . Wheel . | . . . Hover . | . . . Flight . | . . . Utility 5 | 1 4 . Device 2 | . 2 . Storage 3 | 1 2 . Processor . | . . . Hackware . | . . . Protection . | . . . Artifact . | . . . Weapon 7 | 2 5 . Energy Gun 2 | 1 1 . Energy Cannon . | . . . Ballistic Gun 4 | 1 3 . Ballistic Cannon . | . . . Launcher 1 | . 1 . Special Weapon . | . . . Impact Weapon . | . . . Slashing Weapon . | . . . Piercing Weapon . | . . . Special Melee Weapon . | . . . Unidentified Prototypes . | . . . Parts Lost 7 | . 5 2 Power . | . . . Propulsion 3 | . 2 1 Utility 1 | . 1 . Weapon 3 | . 2 1 Highest Loss Streak 2 | . 2 2 To Critical Strikes . | . . . Average Slot Usage (%) 94 | . 94 100 Engine 5 | . 5 . Core 8 | . 8 14 Leg 26 | . 25 28 Device 9 | . 9 14 Storage 15 | . 15 14 Energy Gun 6 | . 6 14 Ballistic Gun 21 | . 21 14 Peak Build Rating 10 | 6 10 10 Average Rating 7 | 3 8 10 On Entrance 5 | . 6 10 Naked Turns . | . . . Heaviest Build 23 | 13 23 18 Greatest Support 20 | 20 20 20 Greatest Overweight (x) 2 | . 2 . Average Overweight (x) . | . . . Largest Inventory Capacity 10 | 8 10 10 Average Capacity 9 | 6 9 10 Most Carried 10 | 5 10 10 Average Carried 5 | 2 6 10 Final Capacity 10 | 8 10 10 Final Carried 10 | 2 10 10 Class Distribution -------------------- 81% | Mutant 18% | Scavenger-Mutant Dominant Class ---------------- Mutant | -10/Materials Scavenger-Mutant | -10/Mines Resources | -11 -10 -10 ----------- Run | Yrd Mat Min Matter Collected 415 | 212 203 . Remotely . | . . . Salvage Created 794 | . 794 . Parts 39 | . 39 . Haulers Intercepted . | . . . Recyclers Shooed 3 | . 3 . Parts Field Recycled . | . . . Retrieved Matter . | . . . Parts Self-Destructed . | . . . Prevented . | . . . Kills | -11 -10 -10 ------- Run | Yrd Mat Min Combat Hostiles Destroyed 11 | . 11 . Guns 10 | . 10 . AOE 1 | . 1 . Classes Destroyed 5 | . 5 . Recycler 5 | . 5 . Operator 1 | . 1 . Watcher 2 | . 2 . Swarmer 4 | . 4 . Grunt 7 | . 7 . Best Kill Streak 4 | . 4 . Combat Bots Only 3 | . 3 . Max Kills in Single Turn 1 | . 1 . Gunslinging . | . . . Exploded 1 | . 1 . Melee . | . . . Uniques/NPCs Destroyed . | . . . Combat | -11 -10 -10 -------- Run | Yrd Mat Min Hostile Shots Fired 128 | . 116 12 Missed 34 | . 30 4 Damage Taken 1103 | . 973 130 Core 270 | . 247 23 Absorbed by Shields . | . . . Core Remaining (%) 100 | 100 . . Volleys Fired 79 | . 77 2 Largest 2 | . 2 2 Hottest 70 | . 70 60 Shots Fired 156 | . 152 4 Gun 154 | . 150 4 Cannon . | . . . Launcher 2 | . 2 . Special . | . . . Kinetic 119 | . 117 2 Thermal 35 | . 33 2 Explosive 2 | . 2 . Electromagnetic . | . . . Robot Hit Streak 13 | . 13 . Robot Miss Streak 4 | . 4 4 Penetration Max . | . . . Secondary Targets . | . . . Shots Hit Robots 99 | . 99 . Core Hits 44 | . 44 . Critical Kills . | . . . Critical Parts Destroyed . | . . . Critical Strikes . | . . . Melee Attacks . | . . . Impact . | . . . Slashing . | . . . Piercing . | . . . Sneak Attacks . | . . . Combat Hostiles . | . . . Follow-up Attacks . | . . . Damage Inflicted 962 | . 962 . Guns 869 | . 869 . Cannons . | . . . Explosions 82 | . 82 . Melee . | . . . Ramming 11 | . 11 . Kinetic 577 | . 577 . Thermal 292 | . 292 . Explosive 82 | . 82 . Electromagnetic . | . . . Impact . | . . . Slashing . | . . . Piercing . | . . . Highest Corruption . | . . . Average Corruption . | . . . Corruption Purged . | . . . Corruption Blocked . | . . . Overload Shots . | . . . Overflow Damage . | . . . Projectiles . | . . . Explosions . | . . . Melee . | . . . Knockbacks . | . . . Impact . | . . . Kinetic . | . . . Secondary . | . . . Self-Inflicted Damage . | . . . Shots . | . . . Rammed . | . . . Targets Rammed 5 | . 5 . Kicked 5 | . 5 . Crushed . | . . . Highest Temperature 162 | . 162 36 Average Temperature 46 | . 46 24 Received Heat Transfer 486 | . 468 18 Siege Activations . | . . . Robots Corrupted . | . . . Combat Hostiles . | . . . Parts Fried . | . . . Impact Corruptions . | . . . Robots Melted . | . . . Combat Hostiles . | . . . Parts Melted 4 | . 4 . Heat Transferred 781 | . 781 . Parts Sabotaged . | . . . Parts Stolen . | . . . Parts Stripped . | . . . Power Chain Reactions . | . . . Alert | -11 -10 -10 ------- Run | Yrd Mat Min Peak Influence 242 | . 242 94 Initial 94 | . . 94 Average 82 | . 92 94 Maximum Alert Level 1 | . 1 . Low Security (%) 90 | 100 89 100 Level 1 9 | . 10 . Level 2 . | . . . Level 3 . | . . . Level 4 . | . . . Level 5 . | . . . High Security . | . . . Max Security . | . . . Squads Dispatched 1 | . 1 . Investigation . | . . . Extermination . | . . . Reinforcement 1 | . 1 . Assault . | . . . Garrison . | . . . Intercept . | . . . Searches Triggered . | . . . Construction Impeded . | . . . Haulers Reinforced . | . . . Active Scanning Responses . | . . . Cargo Convoy Interrupts . | . . . Stealth | -11 -10 -10 --------- Run | Yrd Mat Min Distress Signals 5 | . 5 . Communications Jammed . | . . . Distress Signals . | . . . Times Spotted 39 | . 25 14 Peak Tracking Total 14 | . 6 14 Tactical Retreats 4 | . 4 . Traps | -11 -10 -10 ------- Run | Yrd Mat Min Traps Triggered 2 | . 2 . Indirectly . | . . . Trap Hack Attempts . | . . . Triggered . | . . . Disarmed . | . . . Reprogrammed . | . . . Reused . | . . . Traps Extracted . | . . . Installed . | . . . Triggered . | . . . Machines | -11 -10 -10 ---------- Run | Yrd Mat Min Machines Disabled . | . . . Max in Single Turn . | . . . Machines Repaired . | . . . Machines Dismantled . | . . . Machines Sabotaged . | . . . Overloaded Fab Kills . | . . . Hacking | -11 -10 -10 --------- Run | Yrd Mat Min Machines Accessed 1 | . 1 . Terminals . | . . . Fabricators . | . . . Repair Stations . | . . . Recycling Units 1 | . 1 . Scanalyzers . | . . . Garrison Access . | . . . Total Hacks 3 | . 3 . Successful 2 | . 2 . Failed 1 | . 1 . Catastrophic . | . . . Database Lockouts . | . . . Manual . | . . . Terminals . | . . . Fabricators . | . . . Repair Stations . | . . . Recycling Units 3 | . 3 . Scanalyzers . | . . . Garrison Access . | . . . Terminal Hacks . | . . . Fabricator Hacks . | . . . Repair Station Hacks . | . . . Recycling Unit Hacks 2 | . 2 . Report Inventory 1 | . 1 . Retrieve Components 1 | . 1 . Scanalyzer . | . . . Garrison Access Hacks . | . . . Unauthorized Hacks . | . . . Terminals . | . . . Fabricators . | . . . Repair Stations . | . . . Recycling Units . | . . . Scanalyzers . | . . . Garrison Access . | . . . Data Cores Recovered . | . . . Used . | . . . Hacking Detections 1 | . 1 . Full Trace Events . | . . . Feedback Events . | . . . Feedback Blocked . | . . . Robot Schematics Acquired . | . . . Robots Built . | . . . Authchips . | . . . Time . | . . . Total Robot Build Rating . | . . . Part Schematics Acquired . | . . . Parts Built . | . . . Authchips . | . . . Time . | . . . Total Part Build Rating . | . . . Parts Repaired . | . . . Time . | . . . Parts Recycled . | . . . Recycled Matter . | . . . Retrieved Matter . | . . . Retrieved Components 9 | . 9 . Parts Scanalyzed . | . . . Part Schematics Acquired . | . . . Parts Damaged . | . . . Bothacking | -11 -10 -10 ------------ Run | Yrd Mat Min Used RIF Installer . | . . . Robots Hacked . | . . . Non-combat . | . . . Combat . | . . . Robot Hacks Applied . | . . . Relay Couplers Released . | . . . Fabnet Peak Effective % . | . . . Robots Rewired . | . . . Allies Hacked . | . . . Hacks Repelled . | . . . Allies | -11 -10 -10 -------- Run | Yrd Mat Min Total Allies . | . . . Largest Group . | . . . Highest-Rated Group . | . . . Highest-Rated Ally . | . . . Total Orders . | . . . Ally Attacks . | . . . Total Damage . | . . . Kills . | . . . Allies Corrupted . | . . . Allies Melted . | . . . Intel | -11 -10 -10 ------- Run | Yrd Mat Min Robot Analysis Total . | . . . Derelict Logs Recovered . | . . . Drone Launches . | . . . Drone Recoveries . | . . . Exploration | -11 -10 -10 ------------- Run | Yrd Mat Min Turns Passed 790 | 84 683 23 Spaces Moved 351 | 69 266 16 Core 17 | 17 . . Treads . | . . . Legs 334 | 52 266 16 Wheels . | . . . Hover . | . . . Flight . | . . . Fastest Speed 50 | 50 120 120 Average Speed 124 | 102 130 120 Slowest Speed 260 | 120 260 120 Overloaded Moves . | . . . Propulsion Burnouts . | . . . Robots Hopped . | . . . Cave-ins Triggered . | . . . Exploration Rate (%) 16 | 4 41 5 Regions Visited 2 Branch Regions 1 Pre-discovered Areas . | . . . Known Exits Taken . | . . . Unknown Exits Taken 2 | 1 1 . Scrap Searched . | . . . Spaces Dug . | . . . Terrain Destroyed 10 | . 10 . Melee . | . . . Projectile . | . . . AOE 10 | . 10 . Terrain Rammed . | . . . Walls Destroyed . | . . . Machines Disabled . | . . . Actions | -11 -10 -10 --------- Run | Yrd Mat Min Total 570 | 82 470 18 Wait 84 | . 84 . Move 349 | 68 265 16 Hop . | . . . Pick Up 27 | 8 19 . Fast Attach . | . . . Attach 15 | 6 9 . Detach 1 | . 1 . Swap 7 | . 7 . Drop 3 | . 3 . Fire 79 | . 77 2 Melee . | . . . Ram . | . . . Kick 5 | . 5 . Crush . | . . . Escape Stasis . | . . . Rewire . | . . . Trap . | . . . Miscellaneous . | . . . Route ------- -11/Scrapyard -10/Materials (discovered 2 exits: [*Min x2]) -10/Mines History --------- Turn | Location | Event 5 | -11/Scrapyard | Discovered new exit (range 15) 85 | -11/Scrapyard | Entered Materials 313 | -10/Materials | Build established: Mutant 655 | -10/Materials | Core integrity fell below 50% 677 | -10/Materials | Discovered new exit (range 12) 705 | -10/Materials | Core integrity fell below 20% 762 | -10/Materials | Discovered new exit (range 16) 768 | -10/Materials | Entered Mines 769 | -10/Mines | Assembled infested the area 791 | -10/Mines | Destroyed by as-83003 with Assembled Maul Last Messages --------------- 00747_ Acquired Signal Interpreter. 00747_ U-05 Engineer lays Concrete. 00748_ U-05 Engineer builds a Door. 00750_ U-05 Engineer lays Concrete. 00752_ U-05 Engineer builds a Wall. 00758_ U-05 Engineer lays Concrete. 00758_ U-05 Engineer builds a Wall. 00760_ U-05 Engineer lays Concrete. 00762_ EXIT=FOUND LOCATION=UNKNOWN GOAL=ESCAPE 00769_ ALERT: Infestation in the mines, dispatching Demolisher response squad. 00778_ G-34 Mercenary heat spikes uncontrollably. 00781_ G-47 Trooper destroyed. 00791_ Lgt. Assault Rifle destroyed. 00791_ Aluminum Leg destroyed. 00791_ System corrupted by crushing effect (+2). 00791_ System corrupted by crushing effect (+3). Map ----- +----------------------------------------------------+ | ??????????????????????????? | | ??????????????????????????? | | ??????????????????????????? | | ??????????????????????????? | | ??????????????????????????? | | ??????????????????????????? | | ??????????????????????????? | | ??????????????????????????? | | ??????????????????????????? | | ??????????????????????????? | | ???????????##?????????????? | | ?????????## ?????????????? | | ?????????# ?????????????? | | ????????? ?????????????? | | ????????? ?????????????? | | ?????????# #?????????????? | | ?######### ##????????????? | | ?# #????????????? | | ?# """ """ #????????????? | | ?# """ """ #????????????? | | ?# """a""" #????????????? | | ?# ! #????????????? | | ?# """a"""%= #????????????? | | ?#a""" """= #????????????? | | ?#a"""a""" #????????????? | | ?#@aaaa a #????????????? | | ?#############????????????? | | ??????????????????????????? | | ??????????????????????????? | | ??????????????????????????? | | ??????????????????????????? | | ??????????????????????????? | | ??????????????????????????? | | ??????????????????????????? | | ??????????????????????????? | | ??????????????????????????? | | ??????????????????????????? | | ??????????????????????????? | | ??????????????????????????? | | ??????????????????????????? | | ??????????????????????????? | | ??????????????????????????? | | ??????????????????????????? | | ??????????????????????????? | | ??????????????????????????? | | ??????????????????????????? | | ??????????????????????????? | | ??????????????????????????? | | ??????????????????????????? | | ??????????????????????????? | +----------------------------------------------------+ Best States ------------- Heat Dissipation 25 Energy Generation 14 Energy Capacity 250 Matter Stores 300 Matter Capacity 300 Sight Range 16 Terrain Scan Range 14 Terrain Scan Density 10 Evasion (%) 55 Item Schematics ----------------- None Robot Schematics ------------------ None Fabricated ------------ Nothing Alien Tech Used ----------------- None Achievements -------------- None Challenges ------------ None Game ------ Seed TeslaGrenadeRegenerator Manual? 0 Play Time 00:08:04 Cumulative 5.7 hours Start 2024.12.24 @ 14:05:49 End 2024.12.24 @ 15:22:09 Sessions 1 Manual Loads 0 Difficulty Rogue Special Mode None Game No. 9 Rogue 2 Adventurer 7 Explorer 0 Win Type - Total 0 Types 0/0/0/0/0/0/0/0/0 Lore% 4 Gallery% 14 Achievement% 11 Wizard Run 0 Options --------- Layout 1 ASCII 0 Keyboard 0 Movement Arrows Keybinds 0 Fullscreen 1 Font 24/Smallcaps Map View 50x35 Zoom Use 0% Tactical HUD 1 Map Filters NONE Filters NONE Steam 1 RUN: 8c7073f7-9f16-4962-8ae7-01beefbedbcb